bitfinex-derivatives/quotes_BNBF0:USTF0_20251220
["timestamp","ask_amount","ask_price","bid_price","bid_amount"]
[1766257126618,0.86878174,854.04,852.73,5.95017263]
[1766257127322,0.86878174,854.03,852.73,5.95017263]
[1766257128420,0.86878174,854.02,852.73,5.95017263]
[1766257129323,0.86878174,854.01,852.73,5.95017263]
[1766257130426,0.86878174,854.0,852.73,5.95017263]
[1766257132422,0.86878174,853.99,852.73,5.95017263]
[1766257133322,0.20366241,854.84,852.73,5.95017263]
[1766257133323,0.86878174,853.98,852.73,5.95017263]
[1766257134423,0.86878174,853.97,852.73,5.95017263]
[1766257135228,0.86878174,853.98,852.73,5.95017263]
[1766257135528,0.86878174,853.97,852.73,5.95017263]
[1766257136329,0.86878174,853.96,852.73,5.95017263]
[1766257138431,1.16833238,854.11,852.73,5.95017263]
[1766257138432,0.86878174,853.95,852.73,5.95017263]
[1766257141428,0.86878174,853.94,852.73,5.95017263]
[1766257142232,0.86878174,853.93,852.73,5.95017263]
[1766257143235,0.86878174,853.92,852.73,5.95017263]
[1766257146336,0.86878174,853.91,852.73,5.95017263]
[1766257151339,0.86878174,853.9,852.73,7.11602936]
[1766257154238,0.86878174,853.89,852.74,1.16585673]
[1766257158246,0.86878174,853.88,852.75,1.16585673]
[1766257161245,0.86878174,853.87,852.76,1.16585673]
[1766257163249,0.86878174,853.86,852.77,1.16585673]
[1766257165250,0.86878174,853.85,852.78,1.16585673]
[1766257166251,0.86878174,853.84,852.79,1.16585673]
[1766257168356,0.86878174,853.83,852.8,1.16585673]
[1766257169353,0.86878174,853.82,852.81,1.16585673]
[1766257170158,0.86878174,853.81,852.81,1.16585673]
[1766257170359,0.86878174,853.81,852.82,1.16585673]
[1766257171261,0.86878174,853.79,852.84,1.16585673]
[1766257172261,0.86878174,853.78,852.85,1.16585673]
[1766257174362,0.86878174,853.77,852.86,1.16585673]
[1766257175259,0.86878174,853.76,852.87,1.16585673]
[1766257176359,0.86878174,853.76,852.88,1.16585673]
[1766257177262,0.86878174,853.75,852.88,1.16585673]
[1766257178165,0.86878174,853.75,852.89,1.16585673]
[1766257179267,0.86878174,853.74,852.89,1.16585673]
[1766257204596,0.86878174,853.75,852.89,1.16585673]
[1766257235428,0.86878174,853.6,852.75,1.16585673]
[1766257235626,0.86878174,853.56,852.71,1.16585673]
[1766257236126,0.86878174,853.59,852.69,46.66432407]
[1766257237123,0.86878174,853.61,852.69,46.66432407]
[1766257238128,0.86878174,853.62,852.69,46.66432407]
[1766257239125,0.86878174,853.63,852.69,46.66432407]
[1766257240124,0.86878174,853.64,852.69,46.66432407]
[1766257241729,0.86878174,853.62,852.69,46.66432407]
[1766257243131,0.86878174,853.63,852.69,46.66432407]
[1766257243430,1.16833238,853.78,852.69,46.66432407]
[1766257243632,0.87750481,853.48,852.69,46.66432407]
[1766257243828,0.87750481,853.47,852.69,46.66432407]
[1766257244233,0.87750481,853.49,852.69,46.66432407]
[1766257244433,0.87750481,853.48,852.69,46.66432407]
[1766257245233,0.87750481,853.5,852.69,46.66432407]
[1766257246234,0.87750481,853.51,852.69,46.66432407]
[1766257247037,0.87750481,853.47,852.69,46.66432407]
[1766257247231,0.87750481,853.42,852.23,1.16585673]
[1766257248236,0.87750481,853.44,852.22,0.20399191]
[1766257249139,0.87750481,853.45,852.22,0.20399191]
[1766257249340,0.87750481,853.39,852.22,0.20399191]
[1766257249540,0.87750481,853.37,852.22,0.20399191]
[1766257250137,0.87750481,853.39,852.22,0.20399191]
[1766257251142,0.87750481,853.41,852.22,0.20399191]
[1766257252136,0.87750481,853.43,852.22,0.20399191]
[1766257253137,0.87750481,853.44,852.22,0.20399191]
[1766257254139,0.87750481,853.46,852.22,0.20399191]
[1766257255243,0.87750481,853.47,852.22,0.20399191]
[1766257256239,0.87750481,853.48,852.22,0.20399191]
[1766257257243,0.87750481,853.49,852.22,0.20399191]
[1766257258046,1.16833238,853.65,852.22,0.20399191]
[1766257258047,0.87750481,853.5,852.22,0.20399191]
[1766257259244,1.16833238,853.65,852.22,0.20399191]
[1766257259245,0.87750481,853.51,852.22,0.20399191]
[1766257261147,0.87750481,853.52,852.22,0.20399191]
[1766257263247,0.87750481,853.53,852.22,0.20399191]
[1766257264753,0.87750481,853.52,852.22,0.20399191]
[1766257265150,0.87750481,853.53,852.22,0.20399191]
[1766257268251,0.87750481,853.54,852.22,0.20399191]
[1766257279064,0.87750481,853.53,852.22,0.20399191]
[1766257282263,0.87750481,853.52,852.22,0.20399191]
[1766257284261,0.87750481,853.51,852.22,0.20399191]
[1766257286165,0.87750481,853.5,852.22,0.20399191]
[1766257287168,0.87750481,853.49,852.22,0.20399191]
[1766257288270,0.87750481,853.48,852.22,0.20399191]
[1766257289273,0.87750481,853.47,852.22,0.20399191]
[1766257290168,0.87750481,853.46,852.22,0.20399191]
[1766257290367,0.87750481,853.45,852.22,0.20399191]
[1766257291271,0.87750481,853.44,852.22,0.20399191]
[1766257292072,0.87750481,853.43,852.22,0.20399191]
[1766257292272,0.87750481,853.42,852.22,0.20399191]
[1766257293071,0.87750481,853.41,852.22,0.20399191]
[1766257294169,0.87750481,853.39,852.22,0.20399191]
[1766257294870,0.20386584,854.01,852.22,0.20399191]
[1766257294871,0.87750481,853.4,852.22,0.20399191]
[1766257295272,0.87750481,853.38,852.22,0.20399191]
[1766257296068,0.87750481,853.37,852.22,0.20399191]
[1766257297072,0.87750481,853.36,852.22,0.20399191]
[1766257298173,1.16833238,853.51,852.22,0.20399191]
[1766257298174,0.87750481,853.34,852.22,0.20399191]
[1766257299172,0.87750481,853.33,852.22,0.20399191]
[1766257300176,0.87750481,853.31,852.22,0.20399191]
[1766257301073,0.87750481,853.29,852.22,0.20399191]
[1766257302374,0.87750481,853.27,852.22,1.36984864]
[1766257303172,0.87750481,853.25,852.24,1.16585673]
[1766257304075,0.87750481,853.24,852.25,1.16585673]
[1766257304278,0.87750481,853.23,852.25,1.16585673]
[1766257305182,0.87750481,853.22,852.27,1.16585673]
[1766257306380,0.87750481,853.21,852.28,1.16585673]
[1766257307180,0.87750481,853.19,852.3,1.16585673]
[1766257309079,0.87750481,853.17,852.32,1.16585673]
[1766257312285,0.87750481,853.18,852.33,1.16585673]
[1766257313286,0.87750481,853.19,852.33,1.16585673]
[1766257317298,0.87750481,853.2,852.34,1.16585673]
[1766257317500,0.87750481,853.26,852.4,1.16585673]
[1766257318300,0.87750481,853.27,852.39,1.16585673]
[1766257319299,0.87750481,853.28,852.38,1.16585673]
[1766257322404,0.87750481,853.29,852.37,1.16585673]
[1766257325306,0.87750481,853.3,852.36,1.16585673]
[1766257330207,0.87750481,853.31,852.35,1.16585673]
[1766257332511,0.87750481,853.34,852.38,1.16585673]
[1766257332710,0.87750481,853.4,852.44,1.16585673]
[1766257333314,0.87750481,853.41,852.44,1.16585673]
[1766257334213,0.87750481,853.42,852.43,1.16585673]
[1766257335415,0.87750481,853.42,852.42,1.16585673]
[1766257336215,0.87750481,853.43,852.42,1.16585673]
[1766257337316,0.87750481,853.43,852.41,1.16585673]
[1766257339213,0.87750481,853.44,852.41,1.16585673]
[1766257340218,0.87750481,853.44,852.4,1.16585673]
[1766257342215,0.87750481,853.45,852.4,1.16585673]
[1766257343317,0.87750481,853.45,852.39,1.16585673]
[1766257346324,0.87750481,853.46,852.39,1.16585673]
[1766257348324,0.87750481,853.47,852.39,1.16585673]
[1766257364230,1.16833238,853.62,852.24,53.72718831]
[1766257364231,0.87750481,853.46,852.4,1.16585673]
[1766257368133,0.87750481,853.45,852.4,1.16585673]
[1766257368337,0.87750481,853.45,852.41,1.16585673]
[1766257371233,0.87750481,853.44,852.42,1.16585673]
[1766257374139,0.87750481,853.43,852.43,1.16585673]
[1766257376141,0.87750481,853.42,852.44,1.16585673]
[1766257376637,0.87750481,853.49,852.5,1.16585673]
[1766257377237,0.87750481,853.48,852.51,1.16585673]
[1766257378240,0.87750481,853.49,852.51,1.16585673]
[1766257379141,0.87750481,853.48,852.51,1.16585673]
[1766257379342,0.87750481,853.49,852.51,1.16585673]
[1766257381144,0.87750481,853.49,852.5,1.16585673]
[1766257381739,0.87750481,853.49,852.51,1.16585673]
[1766257382140,0.87750481,853.49,852.5,1.16585673]
[1766257382444,0.87750481,853.48,852.51,1.16585673]
[1766257383247,0.87750481,853.49,852.5,1.16585673]
[1766257383446,0.87750481,853.48,852.51,1.16585673]
[1766257384848,0.87750481,853.48,852.5,1.16585673]
[1766257385249,0.87750481,853.48,852.51,1.16585673]
[1766257386244,0.87750481,853.48,852.5,1.16585673]
[1766257386445,0.87750481,853.48,852.51,1.16585673]
[1766257388254,0.87750481,853.47,852.51,1.16585673]
[1766257390250,0.87750481,853.47,852.52,1.16585673]
[1766257392250,0.87750481,853.46,852.52,1.16585673]
[1766257398254,0.87750481,853.47,852.52,1.16585673]
[1766257413274,0.87750481,853.46,852.52,1.16585673]
[1766257422381,0.87750481,853.46,852.53,1.16585673]
[1766257422982,0.87750481,853.46,852.53,8.23282444]
[1766257425278,0.87750481,853.45,852.53,8.23282444]
[1766257426178,0.87750481,853.46,852.53,8.23282444]
[1766257426484,0.87750481,853.45,852.53,8.23282444]
[1766257429286,0.87750481,853.45,852.54,1.16585673]
[1766257431285,0.87750481,853.44,852.54,1.16585673]
[1766257433280,0.87750481,853.44,852.53,7.06696771]
[1766257433281,0.87750481,853.44,852.55,1.16585673]
[1766257434289,0.87750481,853.43,852.55,1.16585673]
[1766257435189,0.87750481,853.43,852.56,1.16585673]
[1766257436389,0.87750481,853.42,852.57,1.16585673]
[1766257443695,1.16833238,853.57,852.53,7.06696771]
[1766257443696,0.87750481,853.36,852.53,7.06696771]
[1766257444399,0.87750481,853.37,852.53,7.06696771]
[1766257445400,1.16833238,853.53,852.53,7.06696771]
[1766257445401,0.87750481,853.38,852.53,7.06696771]
[1766257448405,0.87750481,853.39,852.53,7.06696771]
[1766257455310,0.87750481,853.4,852.53,7.06696771]
[1766257492539,0.87750481,853.39,852.53,7.06696771]
[1766257498443,0.87750481,853.38,852.53,7.06696771]
[1766257502349,0.87750481,853.37,852.53,7.06696771]
[1766257503447,0.87750481,853.36,852.53,7.06696771]
[1766257505148,0.87750481,853.37,852.53,7.06696771]
[1766257519167,0.87750481,853.39,852.54,1.16585673]
[1766257519466,0.87750481,853.39,852.53,8.23282444]
[1766257524368,0.87750481,853.4,852.53,8.23282444]
[1766257524767,1.16833238,853.55,852.53,8.23282444]
[1766257524965,0.87888298,853.4,852.53,8.23282444]
[1766257529172,0.87888298,853.4,852.53,7.06696771]
[1766257543881,0.87888298,853.4,852.52,1.16585673]
[1766257567410,0.87888298,853.4,852.53,1.16585673]
[1766257575220,0.87888298,853.4,852.54,1.16585673]
[1766257610650,0.87888298,853.41,852.55,1.16585673]
[1766257623461,0.87888298,853.46,852.59,1.16585673]
[1766257623662,0.87888298,853.48,852.61,1.16585673]
[1766257624358,0.87888298,853.49,852.6,1.16585673]
[1766257625260,0.87888298,853.49,852.61,1.16585673]
[1766257625458,0.87888298,853.5,852.6,1.16585673]
[1766257628561,0.87888298,853.51,852.59,1.16585673]
[1766257632266,0.87888298,853.51,852.58,1.16585673]
[1766257633262,0.87888298,853.52,852.58,1.16585673]
[1766257638473,0.87888298,853.52,852.57,1.16585673]
[1766257642276,0.87888298,853.53,852.57,1.16585673]
[1766257656187,0.87888298,853.52,852.56,1.16585673]
[1766257656387,0.87888298,853.45,852.5,1.16585673]
[1766257685119,0.87888298,853.44,852.49,1.36980321]
[1766257699729,0.87888298,853.47,852.52,1.16585673]
[1766257700531,0.87888298,853.47,852.53,1.16585673]
[1766257703340,0.87888298,853.46,852.53,1.16585673]
[1766257708340,0.87888298,853.46,852.54,1.16585673]
[1766257710343,0.87888298,853.45,852.54,1.16585673]
[1766257713345,0.87888298,853.45,852.55,1.16585673]
[1766257714342,0.87888298,853.44,852.55,1.16585673]
[1766257716551,0.87888298,853.45,852.56,1.16585673]
[1766257717248,0.87888298,853.46,852.56,1.16585673]
[1766257717451,0.20394648,853.64,852.58,1.16585673]
[1766257717452,0.87888298,853.48,852.58,1.16585673]
[1766257720558,0.87888298,853.49,852.59,1.16585673]
[1766257720751,0.87888298,853.54,852.63,1.16585673]
[1766257721455,0.87888298,853.54,852.62,1.16585673]
[1766257722254,0.87888298,853.55,852.62,1.16585673]
[1766257723256,0.87888298,853.55,852.61,1.16585673]
[1766257724357,0.87888298,853.56,852.61,1.16585673]
[1766257726258,0.87888298,853.56,852.6,1.16585673]
[1766257727355,0.87888298,853.57,852.6,1.16585673]
[1766257727858,0.87888298,853.66,852.69,1.16585673]
[1766257728060,0.87888298,853.67,852.7,1.16585673]
[1766257728355,0.87888298,853.68,852.69,1.16585673]
[1766257729254,0.87888298,853.68,852.68,1.16585673]
[1766257730358,0.87888298,853.69,852.67,1.16585673]
[1766257731555,0.87888298,853.7,852.67,1.16585673]
[1766257732256,0.87888298,853.7,852.66,1.16585673]
[1766257733359,0.87888298,853.71,852.66,1.16585673]
[1766257734357,0.87888298,853.71,852.65,1.16585673]
[1766257735258,0.87888298,853.72,852.65,1.16585673]
[1766257736261,0.87888298,853.72,852.64,1.16585673]
[1766257737264,0.87888298,853.73,852.64,1.16585673]
[1766257739261,0.87888298,853.73,852.63,1.16585673]
[1766257742166,0.87888298,853.74,852.63,1.16585673]
[1766257743867,0.87888298,853.76,852.65,1.16585673]
[1766257744367,0.87888298,853.76,852.64,1.16585673]
[1766257744568,0.87888298,853.76,852.64,8.38890315]
[1766257745363,0.87888298,853.77,852.65,1.16585673]
[1766257747267,0.87888298,853.79,852.66,1.16585673]
[1766257750268,0.87888298,853.8,852.66,1.16585673]
[1766257752470,0.87888298,853.97,852.83,1.16585673]
[1766257753174,0.87888298,854.0,852.84,1.16585673]
[1766257754270,0.87888298,854.01,852.83,1.16585673]
[1766257755072,0.87888298,854.02,852.82,1.16585673]
[1766257756178,0.87888298,854.03,852.81,1.16585673]
[1766257756477,0.87888298,854.02,852.81,1.16585673]
[1766257757178,0.87888298,854.03,852.8,1.16585673]
[1766257758076,1.0827512,854.04,852.8,1.16585673]
[1766257759180,1.0827512,854.04,852.79,1.16585673]
[1766257760181,0.20386822,854.04,852.79,1.16585673]
[1766257761080,0.20386822,854.04,852.78,1.16585673]
[1766257764181,0.20386822,854.04,852.77,1.16585673]
[1766257764385,0.20386822,854.04,852.78,1.16585673]
[1766257765077,0.20386822,854.04,852.77,1.16585673]
[1766257767982,1.0827512,854.04,852.75,1.16585673]
[1766257768279,0.87888298,853.98,852.69,1.16585673]
[1766257768478,0.87888298,853.97,852.68,1.16585673]
[1766257768778,0.87888298,853.98,852.69,1.16585673]
[1766257770182,0.87888298,853.98,852.7,1.16585673]
[1766257771183,0.87888298,853.97,852.7,1.16585673]
[1766257773283,0.87888298,853.96,852.71,1.16585673]
[1766257775285,0.87888298,853.96,852.72,1.16585673]
[1766257776484,0.87888298,853.95,852.72,1.16585673]
[1766257777485,0.87888298,853.95,852.73,1.16585673]
[1766257778284,0.87888298,853.94,852.73,1.16585673]
[1766257779384,0.87888298,853.94,852.74,1.16585673]
[1766257780086,0.87888298,853.93,852.74,1.16585673]
[1766257781382,0.87888298,853.93,852.75,1.16585673]
[1766257782282,0.87888298,853.92,852.75,1.16585673]
[1766257783388,0.87888298,853.92,852.76,1.16585673]
[1766257783686,0.87606789,853.92,852.76,1.16585673]
[1766257784386,0.87606789,853.91,852.76,1.16585673]
[1766257785389,0.87606789,853.91,852.77,1.16585673]
[1766257786389,0.87606789,853.9,852.77,1.16585673]
[1766257787290,0.87606789,853.9,852.78,1.16585673]
[1766257789189,0.87606789,853.89,852.78,1.16585673]
[1766257792287,0.87606789,853.89,852.79,1.16585673]
[1766257794090,0.87606789,853.88,852.79,1.16585673]
[1766257796294,0.87606789,853.88,852.8,1.16585673]
[1766257797392,0.87606789,853.87,852.8,1.16585673]
[1766257799391,0.87606789,853.87,852.81,1.16585673]
[1766257800996,0.87606789,853.86,852.81,1.16585673]
[1766257801898,0.87606789,853.88,852.83,1.16585673]
[1766257803201,0.87606789,853.87,852.84,1.16585673]
[1766257805402,0.87606789,853.87,852.85,1.16585673]
[1766257806106,0.87606789,853.86,852.85,1.16585673]
[1766257808107,0.87606789,853.85,852.86,1.16585673]
[1766257810107,0.87606789,853.84,852.87,1.16585673]
[1766257812113,0.87606789,853.83,852.88,1.16585673]
[1766257816212,0.87606789,853.83,852.89,1.16585673]
[1766257818117,0.87606789,853.82,852.89,1.16585673]
[1766257819213,0.87606789,853.86,852.93,1.16585673]
[1766257819722,0.87606789,853.88,852.94,1.16585673]
[1766257820819,0.20386822,854.04,852.64,7.22304642]
[1766257820820,0.87606789,853.89,852.96,1.16585673]
[1766257823320,0.87606789,853.89,852.95,1.16585673]
[1766257823823,0.87606789,853.92,852.98,1.16585673]
[1766257826424,0.87606789,853.92,852.97,1.16585673]
[1766257828326,0.87606789,853.93,852.97,1.16585673]
[1766257830228,0.87606789,853.93,852.96,1.16585673]
[1766257832225,0.87606789,853.94,852.96,1.16585673]
[1766257837236,0.87606789,853.94,852.95,1.16585673]
[1766257839240,0.87606789,853.95,852.95,1.16585673]
[1766257845343,0.87606789,853.95,852.96,1.16585673]
[1766257846944,0.87765208,853.95,852.96,1.16585673]
[1766257857649,0.87765208,853.99,853.0,1.16585673]
[1766257864162,0.87765208,853.99,853.01,1.16585673]
[1766257864358,0.87765208,853.99,853.0,1.16585673]
[1766257865359,0.87765208,853.99,853.01,1.16585673]
[1766257871267,0.87765208,853.98,853.01,1.16585673]
[1766257873163,0.87765208,853.98,853.02,1.16585673]
[1766257876268,0.87765208,853.97,853.03,1.16585673]
[1766257878171,0.87765208,853.96,853.03,1.16585673]
[1766257879371,0.87765208,853.96,853.04,1.16585673]
[1766257901183,0.87765208,853.95,853.05,1.16585673]
[1766257910802,0.87765208,853.99,853.09,1.16585673]
[1766257910999,0.87765208,854.01,853.12,1.16585673]
[1766257911302,0.87765208,854.02,853.12,1.16585673]
[1766257912203,0.87765208,854.01,853.12,1.16585673]
[1766257912400,0.87765208,854.02,853.11,1.16585673]
[1766257917812,0.87765208,854.04,853.13,1.16585673]
[1766257918216,0.87765208,854.05,853.12,1.16585673]
[1766257922216,0.87765208,854.06,853.12,1.16585673]
[1766257923317,0.87765208,854.06,853.11,1.16585673]
[1766257926323,0.87765208,854.07,853.11,1.16585673]
[1766257928124,0.87765208,854.09,853.14,1.16585673]
[1766257928420,0.87765208,854.1,853.13,1.16585673]
[1766257932327,0.87765208,854.1,853.0,6.73209005]
[1766257932328,0.87765208,854.1,853.12,1.16585673]
[1766257933327,0.87765208,854.11,853.12,1.16585673]
[1766257940234,0.87765208,854.11,853.11,1.16585673]
[1766257944241,0.87765208,854.12,853.11,1.16585673]
[1766257948242,0.87765208,854.11,853.11,1.16585673]
[1766257948543,0.87765208,854.12,853.11,1.16585673]
[1766257949242,0.87765208,854.11,853.11,1.16585673]
[1766257951241,0.87765208,854.11,853.12,1.16585673]
[1766257959348,0.20380435,854.22,853.12,1.16585673]
[1766257959349,0.87765208,854.1,853.12,1.16585673]
[1766257960250,0.87765208,854.1,853.13,1.16585673]
[1766257964253,0.87765208,854.09,853.14,1.16585673]
[1766257967359,0.87765208,854.08,853.15,1.16585673]
[1766257969255,0.87765208,854.07,853.16,1.16585673]
[1766257969760,0.87765208,854.09,853.18,1.16585673]
[1766257970260,0.87765208,854.09,853.19,1.16585673]
[1766257974466,0.87765208,854.08,853.19,1.16585673]
[1766257976162,0.87765208,854.1,853.21,1.16585673]
[1766257981363,0.87765208,854.11,853.21,1.16585673]
[1766257981663,0.87765208,854.1,853.21,1.16585673]
[1766257982263,0.20380435,854.22,853.21,1.16585673]
[1766257982264,0.87765208,854.11,853.21,1.16585673]
[1766257983169,0.87765208,854.11,853.2,1.16585673]
[1766257986269,0.87765208,854.12,853.22,1.16585673]
[1766257987074,0.87765208,854.12,853.21,1.16585673]
[1766257987273,0.87765208,854.12,853.22,1.16585673]
[1766257988176,0.87765208,854.12,853.21,1.16585673]
[1766257994175,0.87765208,854.13,853.21,1.16585673]
[1766258015494,0.87765208,854.12,853.21,1.16585673]
[1766258024410,0.87765208,854.11,853.21,1.16585673]
[1766258025310,0.87765208,854.11,853.22,1.16585673]
[1766258029414,0.87765208,854.1,853.22,1.16585673]
[1766258031312,0.87765208,854.1,853.23,1.16585673]
[1766258039318,0.87765208,854.09,853.23,1.16585673]
[1766258041222,0.87886293,854.09,853.23,1.16585673]
[1766258044120,0.87886293,854.09,853.24,1.16585673]
[1766258075646,0.87886293,854.08,853.23,1.16585673]
[1766258093662,0.20380435,854.22,853.23,1.16585673]
[1766258094066,0.20380435,854.22,853.15,5.76456774]
[1766258094564,0.20380435,854.22,853.23,1.17073192]
[1766258094968,0.87896597,854.08,853.23,1.17073192]
[1766258095669,0.20380435,854.22,853.23,1.17073192]
[1766258096370,0.20380435,854.22,853.15,5.76456774]
[1766258097768,0.87896587,854.08,853.23,1.17073172]
[1766258125692,0.87896587,853.96,853.11,1.17073172]
[1766258125992,0.87896587,853.89,853.04,1.17073172]
[1766258126187,0.87896587,853.89,852.94,48.68277924]
[1766258126188,0.87896587,853.93,853.0,1.17073172]
[1766258127287,0.87896587,853.95,852.98,1.17073172]
[1766258128293,0.87896587,853.96,852.97,1.17073172]
[1766258128493,0.87896587,853.95,852.95,1.17073172]
[1766258129292,0.87896587,853.96,852.94,49.85351096]
[1766258130189,0.87896587,853.97,852.94,49.85351096]
[1766258130392,0.87896587,853.97,852.94,48.68277924]
[1766258131395,0.87896587,853.98,852.94,48.68277924]
[1766258133297,0.87896587,853.99,852.94,48.68277924]
[1766258134294,1.08278812,854.0,852.94,48.68277924]
[1766258135698,0.87896587,853.99,852.94,48.68277924]
[1766258136395,1.08278812,854.0,852.94,48.68277924]
[1766258138398,0.20382225,854.0,852.94,48.68277924]
[1766258166917,0.87896587,853.99,852.94,48.68277924]
[1766258167116,0.20382225,854.0,852.94,48.68277924]
[1766258167117,0.87896587,853.91,852.94,48.68277924]
[1766258168220,0.87896587,853.92,852.94,48.68277924]
[1766258168517,0.87896587,853.91,852.94,48.68277924]
[1766258172120,0.87896587,853.92,852.94,48.68277924]
[1766258172421,0.87896587,853.91,852.94,48.68277924]
[1766258176217,0.87896587,853.9,852.94,48.68277924]
[1766258179320,0.87896587,853.89,852.94,48.68277924]
[1766258180221,0.87896587,853.88,852.94,48.68277924]
[1766258181222,0.87896587,853.89,852.94,48.68277924]
[1766258181424,0.87896587,853.88,852.94,48.68277924]
[1766258182326,0.87896587,853.87,852.94,48.68277924]
[1766258183226,0.87896587,853.86,852.94,48.68277924]
[1766258184325,0.87896587,853.85,852.94,48.68277924]
[1766258185323,0.87896587,853.84,852.94,48.68277924]
[1766258205948,0.87896587,853.83,852.94,48.68277924]
[1766258211249,0.87896587,853.82,852.94,48.68277924]
[1766258216257,0.87896587,853.81,852.94,48.68277924]
[1766258221461,0.87896587,853.8,852.94,48.68277924]
[1766258223160,0.87896587,853.79,852.94,48.68277924]
[1766258225260,0.87896587,853.78,852.94,48.68277924]
[1766258226160,0.20385927,853.96,852.94,48.68277924]
[1766258226161,0.87896587,853.76,852.94,48.68277924]
[1766258226361,0.87896587,853.76,852.91,1.17073172]
[1766258228964,0.87896587,853.77,852.91,1.17073172]
[1766258243176,0.87896587,853.76,852.91,1.17073172]
[1766258250789,1.17195449,853.92,852.91,1.17073172]
[1766258250989,0.87919981,853.72,852.87,6.27268161]
[1766258251284,0.87919981,853.7,852.87,6.27268161]
[1766258251486,0.87919981,853.69,852.87,6.27268161]
[1766258251888,0.87919981,853.68,852.87,6.27268161]
[1766258252188,0.87919981,853.64,852.87,6.27268161]
[1766258252385,0.87919981,853.66,852.87,6.27268161]
[1766258253189,0.87919981,853.67,852.87,6.27268161]
[1766258254188,0.87919981,853.68,852.87,6.27268161]
[1766258256296,0.87919981,853.69,852.87,6.27268161]
[1766258259201,0.87919981,853.7,852.87,6.27268161]
[1766258262302,0.87919981,853.71,852.87,6.27268161]
[1766258264705,0.87919981,853.69,852.87,6.27268161]
[1766258265508,0.87919981,853.65,852.87,6.27268161]
[1766258267206,0.87919981,853.66,852.87,6.27268161]
[1766258269208,0.87919981,853.67,852.87,6.27268161]
[1766258272212,0.87919981,853.68,852.87,6.27268161]
[1766258276208,0.87919981,853.69,852.87,6.27268161]
[1766258283919,0.87919981,853.69,852.7,46.60605983]
[1766258295222,0.87919981,853.68,852.7,46.60605983]
[1766258299224,0.87919981,853.67,852.7,46.60605983]
[1766258302230,0.87919981,853.66,852.7,46.60605983]
[1766258304332,0.87919981,853.65,852.7,46.60605983]
[1766258306332,0.87919981,853.64,852.7,46.60605983]
[1766258308235,0.87919981,853.63,852.7,46.60605983]
[1766258309435,0.87919981,853.62,852.7,46.60605983]
[1766258310239,0.87919981,853.61,852.7,46.60605983]
[1766258311244,0.87919981,853.6,852.7,46.60605983]
[1766258317952,0.87919981,853.62,852.7,47.77679155]
[1766258318153,0.87919981,853.65,852.74,1.17073172]
[1766258324358,0.87919981,853.64,852.74,1.17073172]
[1766258325157,0.87919981,853.65,852.74,1.17073172]
[1766258325461,0.87919981,853.64,852.74,1.17073172]
[1766258326162,0.87919981,853.65,852.74,1.17073172]
[1766258328963,0.87919981,853.67,852.76,1.17073172]
[1766258329260,1.17195449,853.83,852.76,1.17073172]
[1766258329261,0.87919981,853.68,852.76,1.17073172]
[1766258330266,0.87919981,853.66,852.75,1.17073172]
[1766258331265,0.87919981,853.67,852.74,1.17073172]
[1766258341268,0.87919981,853.67,852.73,1.17073172]
[1766258347279,0.87919981,853.68,852.73,1.17073172]
[1766258352080,1.17195449,853.83,852.73,1.17073172]
[1766258352081,0.87919981,853.67,852.73,1.17073172]
[1766258359090,0.87919981,853.67,852.74,1.17073172]
[1766258367197,0.87919981,853.66,852.74,1.17073172]
[1766258369105,0.87919981,853.66,852.75,1.17073172]
[1766258373201,0.87919981,853.65,852.75,1.17073172]
[1766258374203,0.87919981,853.65,852.76,1.17073172]
[1766258376402,0.87919981,853.64,852.77,1.17073172]
[1766258377107,0.20385927,853.96,852.77,1.17073172]
[1766258377108,0.87919981,853.63,852.77,1.17073172]
[1766258384711,0.87919981,853.6,852.74,1.17073172]
[1766258384911,0.87919981,853.59,852.73,1.17073172]
[1766258385212,0.87919981,853.57,852.71,1.17073172]
[1766258385411,0.87919981,853.57,852.7,1.37463458]
[1766258386313,0.87919981,853.58,852.7,0.20390286]
[1766258388314,0.87919981,853.59,852.7,0.20390286]
[1766258392310,0.87919981,853.6,852.7,0.20390286]
[1766258398316,0.87823782,853.6,852.7,0.20390286]
[1766258401019,0.87823782,853.61,852.7,0.20390286]
[1766258428250,0.87823782,853.6,852.7,0.20390286]
[1766258436450,0.87823782,853.59,852.7,0.20390286]
[1766258440457,0.87823782,853.58,852.7,0.20390286]
[1766258443261,0.87823782,853.57,852.7,1.37463458]
[1766258444263,0.87823782,853.56,852.71,1.17073172]
[1766258586676,0.87823782,853.58,852.74,1.17073172]
[1766258587271,0.87823782,853.59,852.73,1.17073172]
[1766258587472,0.87823782,853.59,852.73,5.65247292]
[1766258588677,0.87823782,853.62,852.76,1.17073172]
[1766258589278,0.87823782,853.64,852.77,1.17073172]
[1766258590276,0.87823782,853.65,852.76,1.17073172]
[1766258592382,0.87823782,853.66,852.76,1.17073172]
[1766258593282,0.87823782,853.66,852.75,1.17073172]
[1766258595283,0.87823782,853.67,852.75,1.17073172]
[1766258597285,0.87823782,853.67,852.74,1.37462025]
[1766258601283,0.87823782,853.68,852.74,1.37462025]
[1766258605294,0.87823782,853.68,852.74,0.20388853]
[1766258631305,0.87823782,853.68,852.74,1.37462025]
[1766258634412,1.17195449,853.83,852.74,1.37462025]
[1766258634413,0.87823782,853.67,852.74,1.37462025]
[1766258638214,0.87823782,853.67,852.75,1.17073172]